fUSD/lending_fUSD_20251017
["ID","MTS","AMOUNT","RATE_DAILY","PERIOD"]
[391597282,1760685041210,-500.0,0.00026473,2]
[391597283,1760685041220,-509.70729923,0.00026473,2]
[391597284,1760685041230,-500.0,0.00026473,2]
[391597285,1760685041240,-217.55397672,0.00026473,2]
[391597287,1760685041250,-456.54737513,0.00026473,2]
[391597288,1760685041260,-500.0,0.00026473,2]
[391597290,1760685041269,-168.0,0.00026476,2]
[391597292,1760685041279,-9552.16786547,0.00026517,2]
[391597294,1760685041289,-394.8995705,0.00026561,2]
[391597296,1760685041298,-298.48984956,0.00026561,2]
[391597298,1760685041308,-205.76041543,0.00026561,2]
[391597300,1760685041317,-500.0,0.00026561,2]
[391597302,1760685041326,-500.0,0.00026561,2]
[391597304,1760685041336,-264.70483048,0.00026561,2]
[391597307,1760685041346,-21025.6534809,0.00026562,3]
[391597308,1760685041355,-9905.5980765,0.00026572,2]
[391597310,1760685041365,-10272.10520533,0.00026627,2]
[391597312,1760685041375,-168.0,0.00026648,2]
[391597314,1760685041385,-21025.6534809,0.00026672,3]
[391597316,1760685041395,-10652.17309792,0.00026682,2]
[391597317,1760685041408,-11046.30350255,0.00026737,2]
[391597318,1760685041419,-333.0,0.00026747,2]
[391597319,1760685041429,-11455.01673214,0.00026792,2]
[391597320,1760685041439,-21025.6534809,0.00026827,3]
[391597321,1760685041448,-500.0,0.00026836,2]
[391597322,1760685041458,-11878.85235123,0.00026847,2]
[391597323,1760685041467,-168.0,0.00026864,2]
[391597324,1760685041476,-192.15810404,0.00026875,2]
[391597325,1760685041486,-5497.75322537,0.00026902,2]
[391597326,1760685041496,-168.0,0.00026933,2]
[391597327,1760685041506,-333.0,0.00026985,2]
[391597328,1760685041515,-2000.0,0.00027,2]
[391597329,1760685041525,-168.0,0.00027003,2]
[391597330,1760685041535,-2353.423167,0.0002701,2]
[391597331,1760685041546,-151.0,0.0002701,2]
[391597332,1760685041556,-500.0,0.00027021,2]
[391597333,1760685041565,-500.0,0.00027021,2]
[391597334,1760685041575,-168.0,0.00027035,2]
[391597335,1760685041585,-22323.89877127,0.00027141,2]
[391597336,1760685041599,-153301.94891604,0.00027141,2]
[391597337,1760685041608,-56824.05849848,0.00027164,2]
[391597338,1760685041668,-472.83985363,0.00018272,2]
[391597339,1760685041678,-144.64997837,0.00027164,2]
[391597340,1760685041753,-2995.9588474,0.00027164,2]
[391597341,1760685041893,-115661.18036306,0.00027164,2]
[391597342,1760685041903,-175625.84768731,0.00027167,2]
[391597343,1760685041916,-2000.0,0.000272,2]
[391597344,1760685041926,-2000.0,0.000272,2]
[391597345,1760685041935,-2000.0,0.0002721,2]
[391597346,1760685041945,-2000.0,0.0002721,2]
[391597347,1760685041955,-21025.6534809,0.0002721,3]
[391597348,1760685041965,-175625.84768731,0.00027217,2]
[391597349,1760685041975,-3629.609516,0.0002722,2]
[391597350,1760685041986,-2000.0,0.0002722,2]
[391597351,1760685041999,-2434.757386,0.0002723,2]
[391597352,1760685042011,-333.0,0.0002729,2]
[391597353,1760685042020,-192.15810404,0.00027387,2]
[391597354,1760685042031,-168.0,0.00027393,2]
[391597355,1760685042041,-503.98658772,0.00027397,2]
[391597356,1760685042052,-605.50559966,0.00027397,2]
[391597357,1760685042062,-168.0,0.00027433,2]
[391597358,1760685042075,-168.0,0.00027494,2]
[391597359,1760685042086,-2903.0,0.00027558,5]
[391597360,1760685042095,-151.54098254,0.00027558,2]
[391597361,1760685042105,-2000.0,0.00027567,120]
[391597362,1760685042115,-199.0,0.00027671,7]
[391597363,1760685042125,-150.0,0.00027689,2]
[391597364,1760685042135,-150.243,0.00027689,2]
[391597365,1760685042145,-150.103,0.00027689,2]
[391597366,1760685042155,-150.0,0.00027689,2]
[391597367,1760685042165,-150.0,0.00027689,2]
[391597368,1760685042175,-317.198,0.00027689,2]
[391597369,1760685042185,-1267.0,0.00027689,2]
[391597370,1760685042211,-334.5472959,0.00027831,2]
[391597371,1760685042222,-168.0,0.00027881,2]
[391597372,1760685042233,-168.0,0.00027893,2]
[391597373,1760685042244,-192.15810404,0.000279,2]
[391597374,1760685042255,-5000.0,0.00027918,2]
[391597375,1760685042266,-199.0,0.00027945,8]
[391597376,1760685042276,-21025.6534809,0.00028008,3]
[391597377,1760685042287,-1081.58928739,0.00028028,5]
[391597378,1760685042297,-1096.48613411,0.00028028,5]
[391597379,1760685042307,-1058.71429262,0.00028028,5]
[391597380,1760685042317,-1020.71351848,0.00028028,5]
[391597381,1760685042328,-1060.15525945,0.00028028,5]
[391597382,1760685042339,-1014.46639723,0.00028028,5]
[391597383,1760685042350,-353.78,0.00028078,30]
[391597384,1760685042360,-168.0,0.00028089,2]
[391597385,1760685042370,-199.0,0.00028219,9]
[391597386,1760685042382,-192.15810404,0.00028412,2]
[391597387,1760685042392,-199.0,0.00028493,10]
[391597388,1760685042402,-500.0,0.00028499,120]
[391597389,1760685042415,-2000.0,0.00028499,120]
[391597390,1760685042426,-500.0,0.00028499,120]
[391597391,1760685042437,-500.0,0.00028499,120]
[391597392,1760685042447,-157.92062508,0.0002863,2]
[391597393,1760685042458,-184.24072927,0.0002863,2]
[391597394,1760685042468,-199.0,0.00028767,11]
[391597395,1760685042478,-800.0,0.00028792,7]
[391597396,1760685042488,-3000.0,0.00028792,7]
[391597397,1760685042499,-201.45,0.00028913,2]
[391597398,1760685042509,-192.15810404,0.00028925,2]
[391597399,1760685042520,-157.92062508,0.00028959,2]
[391597400,1760685042530,-527.58,0.00029021,2]
[391597401,1760685042541,-199.0,0.00029041,12]
[391597402,1760685042557,-1444.0,0.00029041,120]
[391597403,1760685042568,-900.0,0.00029066,7]
[391597404,1760685042579,-500.0,0.000291,5]
[391597405,1760685042590,-21025.6534809,0.00029146,3]
[391597406,1760685042602,-1568.3,0.00029166,120]
[391597407,1760685042612,-346.92554585,0.000292,2]
[391597408,1760685042623,-157.92062508,0.0002926,2]
[391597409,1760685042634,-1493.33,0.00029286,2]
[391597410,1760685042645,-199.0,0.00029315,13]
[391597411,1760685042656,-500.0,0.00029397,2]
[391597412,1760685042667,-192.15810404,0.00029437,2]
[391597413,1760685042678,-3969.013,0.0002945,2]
[391597414,1760685042689,-1039.78407787,0.00029533,5]
[391597415,1760685042701,-1141.53887235,0.00029533,5]
[391597416,1760685042712,-1149.29265659,0.00029533,5]
[391597417,1760685042722,-1122.46206893,0.00029533,5]
[391597418,1760685042733,-1149.90082496,0.00029533,5]
[391597419,1760685042743,-1022.99001003,0.00029533,5]
[391597420,1760685042754,-1027.41992678,0.00029533,5]
[391597422,1760685042765,-1135.32216588,0.00029533,5]
[391597423,1760685042775,-1085.55652324,0.00029533,5]
[391597424,1760685042785,-199.0,0.00029589,14]
[391597425,1760685042796,-157.92062508,0.00029589,2]
[391597426,1760685042808,-21025.6534809,0.00029604,3]
[391597427,1760685042819,-800.0,0.00029614,7]
[391597428,1760685042829,-3000.0,0.00029614,7]
[391597429,1760685042840,-500.0,0.00029648,5]
[391597430,1760685042850,-236.70518479,0.00029848,2]
[391597432,1760685042861,-199.0,0.00029863,15]
[391597433,1760685042871,-21025.6534809,0.0002988,3]
[391597435,1760685042882,-900.0,0.00029888,7]
[391597436,1760685042892,-879.467,0.00029899,2]
[391597437,1760685042902,-874.4847,0.000299,120]
[391597438,1760685042921,-21025.6534809,0.00029917,3]
[391597441,1760685042932,-500.0,0.00029927,2]
[391597443,1760685042943,-2111.0,0.00029928,2]
[391597444,1760685042954,-63076.9604427,0.00029928,3]
[391597445,1760685042965,-168205.227847,0.00029938,3]
[391597446,1760685042976,-150.0,0.00029941,2]
[391597447,1760685042987,-155.83316816,0.00029941,2]
[391597448,1760685043001,-150.0,0.00029941,2]
[391597449,1760685043011,-150.0,0.00029941,2]
[391597450,1760685043022,-150.0,0.00029941,2]
[391597451,1760685043035,-150.32095886,0.00029941,2]
[391597452,1760685043046,-150.0,0.00029941,2]
[391597453,1760685043057,-150.43366899,0.00029941,2]
[391597455,1760685043071,-150.0,0.00029941,2]
[391597458,1760685043082,-249.83,0.00029947,2]
[391597460,1760685043092,-192.15810404,0.0002995,2]
[391597461,1760685043103,-3323.78494402,0.0002995,2]
[391597462,1760685043114,-150.0,0.00029957,20]
[391597463,1760685043125,-2986.3426,0.00029958,2]
[391597464,1760685043135,-33121.9923,0.00029958,2]
[391597465,1760685043146,-65135.73430044,0.00029958,2]
[391597466,1760685043251,-1643.50025492,0.00029958,2]
[391597467,1760685043300,-55.16711505,0.00029958,2]
[391597468,1760685043319,-22461.0,0.00029958,2]
[391597469,1760685043392,-401.2122794,0.00023868,2]
[391597470,1760685043403,-27.3077206,0.00026462,2]
[391597471,1760685043418,-125.01295634,0.00026462,2]
[391597472,1760685043429,-70872.32732959,0.00029958,2]
[391597473,1760685043440,-1000.0,0.00029958,2]
[391597474,1760685043451,-127082.2597835,0.00029958,2]
[391597475,1760685043461,-500.0,0.00029973,5]
[391597476,1760685043472,-500.0,0.00029973,5]
[391597477,1760685043483,-500.0,0.00029973,5]
[391597479,1760685043494,-500.0,0.00029973,5]
[391597481,1760685043504,-217.62640907,0.00029996,2]
[391597483,1760685043514,-150.0,0.00029996,2]
[391597485,1760685043524,-285.48417711,0.00029996,2]
[391597487,1760685043534,-12267.28934448,0.00030036,3]
[391597510,1760685046005,-151.0,0.00015456,2]
[391597511,1760685046016,-117.21440174,0.00027458,2]
[391597513,1760685046028,-3800.0,0.00027458,2]
[391597515,1760685046288,-1082.78559826,0.00027458,2]
[391597516,1760685046300,-5350.38535379,0.00030036,3]
[391597529,1760685302835,-195.00009356,0.00013327,2]
[391597530,1760685303168,500.0,0.00012752,2]
[391597540,1760685603154,500.0,0.00012752,2]
[391597541,1760685776537,4939.89,0.000163,30]
[391597543,1760685966474,4255.79579322,0.00011,2]
[391597548,1760685967830,3567.52892,0.00011,2]
[391597549,1760685977871,-463.91,0.00013,2]
[391597550,1760685980649,-540.06595825,0.00013,2]
[391597554,1760686007992,-311.10736583,0.00013,2]
[391597555,1760686010902,-520.94830104,0.00013,2]
[391597564,1760686084590,-294.83987302,0.00013,2]
[391597567,1760686117293,-520.94830104,0.00013,2]
[391597577,1760686128107,-420.47616769,0.00013,2]
[391597578,1760686129679,-410.09671403,0.00013,2]
[391597594,1760686173758,-154.25091183,0.00013,2]
[391597595,1760686189318,-620.2116624,0.00013,2]
[391597599,1760686218311,-188.40903968,0.00013,2]
[391597616,1760686232197,-57.70283031,0.00013,2]
[391597617,1760686232214,-16.87990644,0.00013327,2]
[391597618,1760686232225,-166.66,0.00013699,2]
[391597619,1760686232235,-166.66,0.00013911,2]
[391597620,1760686232245,-211.88,0.00014028,2]
[391597621,1760686232255,-49.81153799,0.00014055,2]
[391597622,1760686232281,-250.18846201,0.00014055,2]
[391597623,1760686232291,-120.34699765,0.00014055,2]
[391597624,1760686232303,-846.46166189,0.00014055,2]
[391597625,1760686232315,-233.19134046,0.00014055,2]
[391597626,1760686232325,-702.47492367,0.00014056,2]
[391597627,1760686232336,-5380.6748599,0.00014056,2]
[391597628,1760686232347,-5259.22021643,0.00014056,2]
[391597629,1760686232363,-277.50286667,0.00014106,2]
[391597630,1760686232374,-215.65596193,0.00014106,2]
[391597631,1760686232384,-166.66,0.00014123,2]
[391597632,1760686232394,-195.0,0.000143,2]
[391597633,1760686232404,-173.82203801,0.000143,2]
[391597634,1760686232416,-57.48836356,0.000143,2]
[391597635,1760686232426,-250.0,0.000143,2]
[391597636,1760686232440,-166.66,0.00014335,2]
[391597637,1760686232457,-166.66,0.00014548,2]
[391597638,1760686232468,-1200.0,0.00014659,2]
[391597639,1760686232479,-872.81384913,0.0001466,2]
[391597640,1760686232489,-195.0,0.0001466,2]
[391597641,1760686232499,-300.0,0.0001466,2]
[391597642,1760686232509,-250.0,0.0001466,2]
[391597643,1760686232520,-300.0,0.0001466,2]
[391597644,1760686232530,-211.88,0.0001473,2]
[391597645,1760686232540,-166.66,0.0001476,2]
[391597646,1760686232550,-500.0,0.00014799,2]
[391597647,1760686232560,-150.0,0.00014899,2]
[391597648,1760686232570,-161.33547384,0.000149,2]
[391597649,1760686232580,-2984.49934456,0.000149,2]
[391597650,1760686232590,-363.12841816,0.000149,2]
[391597651,1760686232610,-2984.49934448,0.00014924,2]
[391597652,1760686232620,-51.14685365,0.00014947,2]
[391597653,1760686232633,-1136.13504,0.00014947,2]
[391597654,1760686232652,-533.0325,0.00014947,2]
[391597655,1760686232664,-1264.18495083,0.00014947,2]
[391597656,1760686232674,-2984.49934448,0.00014971,2]
[391597657,1760686232684,-500.0,0.00014973,2]
[391597658,1760686232695,-500.0,0.00014973,2]
[391597659,1760686232704,-500.0,0.00014973,2]
[391597660,1760686232714,-500.0,0.00014973,2]
[391597661,1760686232724,-500.0,0.00014973,2]
[391597663,1760686232735,-500.0,0.00014973,2]
[391597665,1760686232745,-160.99884745,0.00014973,2]
[391597667,1760686232756,-596.99285627,0.00014973,2]
[391597669,1760686232766,-500.0,0.00014973,2]
[391597671,1760686232777,-131.03517028,0.00014973,2]
[391597674,1760686232791,-370.32750422,0.00014973,2]
[391597676,1760686232804,-500.4575524,0.00014973,2]
[391597678,1760686232815,-500.74844744,0.00014973,2]
[391597680,1760686232825,-500.0,0.00014973,2]
[391597682,1760686232835,-213.90262589,0.00014973,2]
[391597684,1760686232845,-177.35957477,0.00014973,2]
[391597686,1760686232860,-374.70393919,0.00014973,2]
[391597688,1760686232871,-166.7371949,0.00014973,2]
[391597691,1760686232880,-500.0,0.00014973,2]
[391597693,1760686232891,-501.05311295,0.00014973,2]
[391597695,1760686232900,-501.36065041,0.00014973,2]
[391597697,1760686232910,-500.58063668,0.00014973,2]
[391597699,1760686232920,-500.0,0.00014973,2]
[391597701,1760686232930,-209.38380504,0.0001499,2]
[391597703,1760686232941,-209.38380504,0.0001499,2]
[391597705,1760686232952,-209.38380504,0.0001499,2]
[391597707,1760686232961,-151.0,0.00014991,2]
[391597709,1760686232971,-151.0,0.00014991,2]
[391597711,1760686232981,-151.0,0.00014991,2]
[391597713,1760686232992,-151.0,0.00014991,2]
[391597715,1760686233002,-151.0,0.00014991,2]
[391597717,1760686233012,-151.0,0.00014991,2]
[391597719,1760686233023,-151.0,0.00014991,2]
[391597721,1760686233033,-151.0,0.00014991,2]
[391597723,1760686233043,-151.0,0.00014991,2]
[391597726,1760686233054,-151.0,0.00014991,2]
[391597728,1760686233065,-151.0,0.00014991,2]
[391597730,1760686233075,-151.0,0.00014991,2]
[391597732,1760686233085,-151.0,0.00014991,2]
[391597734,1760686233096,-151.0,0.00014991,2]
[391597736,1760686233111,-151.0,0.00014991,2]
[391597737,1760686233122,-151.0,0.00014991,2]
[391597740,1760686233133,-151.0,0.00014991,2]
[391597742,1760686233144,-151.0,0.00014991,2]
[391597744,1760686233155,-151.0,0.00014991,2]
[391597746,1760686233165,-151.0,0.00014991,2]
[391597747,1760686233176,-151.0,0.00014991,2]
[391597748,1760686233198,-2984.49934448,0.00014994,2]
[391597749,1760686233212,-151.0,0.00014997,2]
[391597750,1760686233224,-468.22513017,0.00014999,2]
[391597751,1760686233236,-493.32661744,0.00014999,2]
[391597752,1760686233248,-199.98909196,0.00014999,2]
[391597753,1760686233260,-500.0,0.00014999,2]
[391597754,1760686233271,-500.0,0.00014999,2]
[391597755,1760686233282,-572.81288876,0.00014999,2]
[391597757,1760686233294,-169.24267307,0.00014999,2]
[391597759,1760686233304,-392.01635592,0.00014999,2]
[391597761,1760686233315,-17614.58220243,0.00015,2]
[391597764,1760686233334,-60236.75769579,0.00015,2]
[391597766,1760686233346,-82544.41232163,0.00015,2]
[391597769,1760686233363,-5787.304048,0.00015,2]
[391597771,1760686233378,-2272.296,0.00015,2]
[391597773,1760686233392,-5123.43725578,0.00015,2]
[391597776,1760686233405,-2110.52202478,0.00015,2]
[391597778,1760686233419,-2103.39067544,0.00015,2]
[391597780,1760686233431,-335.975,0.00015,2]
[391597782,1760686233446,-19884.05345915,0.00015,2]
[391597785,1760686233458,-9559.81180397,0.00015,2]
[391597787,1760686233470,-4400.42650008,0.00015,2]
[391597792,1760686233508,-211.61912452,0.000149,2]
[391597794,1760686233518,-5110.71736803,0.00015,2]
[391598106,1760686238128,-435.68171857,0.00015,2]
[391598107,1760686238144,-882.28318672,0.00015,2]
[391598109,1760686238158,-7055.21687904,0.00015,2]
[391598110,1760686238171,-3036.66385919,0.00015,2]
[391598111,1760686238216,-1293.126025,0.00015,2]
[391598112,1760686238230,-9025.87203848,0.00015,2]
[391598113,1760686238242,-97704.12796139,0.00015,2]
[391598114,1760686238308,-3560151.5766886,0.00015,2]
[391598115,1760686238321,-2929.25000049,0.00015,2]
[391598116,1760686238334,-694.22104089,0.00015,2]
[391598126,1760686240426,-639.4219832,0.00015,2]
[391598127,1760686240441,-5987.06907816,0.00015,2]
[391598128,1760686240457,-27045.13894574,0.00015,2]
[391598129,1760686240502,-533.0,0.00015,2]
[391598130,1760686240581,-770.30823164,0.00015,2]
[391598133,1760686240594,-455.1,0.00015,2]
[391598138,1760686240736,-1.6e-07,0.00015,2]
[391598150,1760686243229,-647414.52222754,0.00015,2]
[391598151,1760686243292,-213010.00000001,0.00015,2]
[391598152,1760686243362,-877.73323689,0.00015,2]
[391598153,1760686243375,-390.56676311,0.00015,2]
[391598154,1760686243539,-1536.57723201,0.00015,2]
[391598155,1760686243551,-497.53,0.00015,2]
[391598156,1760686243564,-565.40010098,0.00015,2]
[391598173,1760686246279,-8391.58962568,0.00015,2]
[391598174,1760686246291,-1773.39997,0.00015,2]
[391598175,1760686246321,-564.850006,0.00015,2]
[391598182,1760686531637,1929.57464838,1e-06,33]
[391598183,1760686536360,152.0,8.118e-05,2]
[391598184,1760686536576,151.0,8.118e-05,2]
[391598185,1760686536815,151.0,8.118e-05,2]
[391598186,1760686537254,151.0,8.118e-05,2]
[391598187,1760686537308,151.0,8.118e-05,2]
[391598199,1760686835866,310.72683863,0.00027397,120]
[391598201,1760686994408,500.0,0.00012754,2]
[391598202,1760687028372,500.0,0.00012754,2]
[391598203,1760687042468,-250.0,0.00014363,7]
[391598204,1760687043804,888.0,0.00027397,120]
[391598205,1760687071594,777.0,0.00027397,120]
[391598206,1760687142194,222.0,0.00013655,120]
[391598209,1760687210791,-500.0,0.00013655,2]
[391598210,1760687239645,-250.0,0.00013677,2]
[391598223,1760687313840,-259.77412011,0.00013699,2]
[391598250,1760687432512,-232.36587989,0.00013699,2]
[391598251,1760687432526,-17.63412011,0.00013798,2]
[391598252,1760687432542,-232.36587989,0.00013798,2]
[391598253,1760687432556,-150.0,0.00013871,2]
[391598254,1760687432569,-37.89581734,0.00013904,2]
[391598255,1760687432585,-1664.88418266,0.00013904,2]
[391598256,1760687432605,-666.0,0.00013935,3]
[391598257,1760687432619,-1050.0627,0.00013951,2]
[391598258,1760687432633,-1200.0,0.00013968,2]
[391598259,1760687432646,-5005.09,0.00013969,2]
[391598260,1760687432659,-228.02,0.00014002,2]
[391598261,1760687432672,-600.0,0.00014017,2]
[391598262,1760687432684,-300.0,0.0001405,2]
[391598263,1760687432696,-1804.46,0.00014051,2]
[391598264,1760687432708,-1200.0,0.00014132,2]
[391598265,1760687432721,-4682.94,0.00014134,2]
[391598266,1760687432733,-166.66,0.00014558,2]
[391598267,1760687432746,-845.5695796,0.00014668,2]
[391598268,1760687432757,-555.0,0.00014737,2]
[391598269,1760687432769,-2222.44625,0.0001485,2]
[391598270,1760687432781,-180.0,0.00014872,2]
[391598271,1760687432793,-501.95111172,0.00014873,2]
[391598272,1760687432806,-1741.61156637,0.00014897,2]
[391598274,1760687432820,-281.175,0.00014897,2]
[391598277,1760687432835,-352.91766523,0.00014897,2]
[391598279,1760687432847,-222.0,0.00014897,2]
[391598281,1760687432861,-97.96947173,0.00014899,2]
[391598284,1760687432875,-904.29166429,0.00014899,2]
[391598286,1760687432887,-1000.0,0.00014899,2]
[391598288,1760687432901,-571.59181171,0.00014899,2]
[391598294,1760687432951,-1756.20918829,0.00014899,2]
[391598296,1760687432962,-232.344,0.00014899,2]
[391598298,1760687432974,-150.0,0.00014899,2]
[391598302,1760687432986,-655.43115267,0.000149,2]
[391598305,1760687432998,-177.5288886,0.000149,2]
[391598307,1760687433010,-8596.58314156,0.000149,2]
[391598309,1760687433024,-530.53,0.000149,2]
[391598312,1760687433040,-379.444374,0.000149,2]
[391598314,1760687433053,-2012.39382607,0.000149,2]
[391598316,1760687433067,-561.92260041,0.000149,2]
[391598318,1760687433080,-5884.0613334,0.000149,2]
[391598327,1760687438434,-200.0,0.00014372,2]
[391598328,1760687438444,-2821.45028805,0.0001489,2]
[391598329,1760687438454,-2278.54971195,0.000149,2]
[391598330,1760687438467,-606.23645206,0.000149,2]
[391598331,1760687438479,-5160.94435914,0.000149,2]
[391598332,1760687438492,-24649.99619838,0.000149,2]
[391598333,1760687438503,-236.8320903,0.000149,2]
[391598334,1760687438514,-46588.0,0.00014959,2]
[391598335,1760687438523,-9322.0,0.00014959,2]
[391598337,1760687438533,-500.0,0.00014973,2]
[391598338,1760687438543,-501.19732905,0.00014973,2]
[391598339,1760687438553,-167.42391631,0.00014973,2]
[391598340,1760687438563,-524.55788713,0.00014973,2]
[391598341,1760687438574,-504.67142996,0.00014973,2]
[391598342,1760687438585,-500.46255512,0.00014973,2]
[391598343,1760687438595,-500.94969033,0.00014973,2]
[391598344,1760687438610,-500.65727146,0.00014973,2]
[391598345,1760687438625,-501.22986061,0.00014973,2]
[391598347,1760687438636,-500.0,0.00014973,2]
[391598349,1760687438650,-500.14964715,0.00014973,2]
[391598351,1760687438660,-496.3070409,0.00014973,2]
[391598353,1760687438671,-459.46247339,0.00014973,2]
[391598355,1760687438681,-502.97521949,0.00014973,2]
[391598356,1760687438691,-500.0,0.00014973,2]
[391598358,1760687438701,-500.0,0.00014973,2]
[391598359,1760687438711,-174.7364274,0.00014973,2]
[391598360,1760687438721,-500.0,0.00014973,2]
[391598361,1760687438731,-2222.44625,0.0001498,2]
[391598362,1760687438742,-500.0,0.00014985,2]
[391598363,1760687438751,-220.94116473,0.0001499,2]
[391598364,1760687438761,-151.0,0.00014991,2]
[391598365,1760687438771,-151.0,0.00014991,2]
[391598366,1760687438781,-151.0,0.00014991,2]
[391598367,1760687438792,-151.0,0.00014991,2]
[391598368,1760687438802,-151.0,0.00014991,2]
[391598369,1760687438811,-151.0,0.00014991,2]
[391598370,1760687438821,-151.0,0.00014991,2]
[391598371,1760687438831,-500.0,0.00014991,2]
[391598372,1760687438841,-151.0,0.00014991,2]
[391598373,1760687438850,-151.0,0.00014991,2]
[391598374,1760687438863,-500.0,0.00014991,2]
[391598375,1760687438873,-151.0,0.00014991,2]
[391598376,1760687438883,-151.0,0.00014991,2]
[391598377,1760687438892,-500.0,0.00014991,2]
[391598378,1760687438904,-151.0,0.00014991,2]
[391598379,1760687438916,-151.0,0.00014991,2]
[391598380,1760687438926,-500.0,0.00014991,2]
[391598381,1760687438936,-151.0,0.00014991,2]
[391598382,1760687438947,-500.0,0.00014991,2]
[391598383,1760687438957,-151.0,0.00014991,2]
[391598384,1760687438967,-151.0,0.00014991,2]
[391598385,1760687438978,-500.0,0.00014991,2]
[391598386,1760687438988,-151.0,0.00014991,2]
[391598387,1760687438997,-151.0,0.00014991,2]
[391598388,1760687439007,-500.0,0.00014991,2]
[391598389,1760687439017,-151.0,0.00014991,2]
[391598390,1760687439028,-151.0,0.00014991,2]
[391598391,1760687439038,-500.0,0.00014991,2]
[391598392,1760687439048,-151.0,0.00014991,2]
[391598393,1760687439058,-151.0,0.00014991,2]
[391598394,1760687439069,-500.0,0.00014991,2]
[391598395,1760687439079,-151.0,0.00014991,2]
[391598396,1760687439089,-151.0,0.00014991,2]
[391598397,1760687439099,-500.0,0.00014991,2]
[391598398,1760687439113,-182.74839534,0.00014991,2]
[391598399,1760687439125,-151.0,0.00014991,2]
[391598400,1760687439135,-500.0,0.00014991,2]
[391598401,1760687439145,-151.0,0.00014991,2]
[391598402,1760687439155,-520.57989672,0.00014991,2]
[391598403,1760687439165,-200.0,0.00014991,2]
[391598404,1760687439175,-154.99182914,0.00014991,2]
[391598405,1760687439185,-151.0,0.00014991,2]
[391598406,1760687439195,-151.0,0.00014991,2]
[391598407,1760687439205,-200.0,0.00014991,2]
[391598408,1760687439215,-151.0,0.00014991,2]
[391598409,1760687439225,-151.0,0.00014991,2]
[391598410,1760687439236,-260.37150288,0.00014991,2]
[391598411,1760687439246,-200.0,0.00014991,2]
[391598412,1760687439257,-1051.68,0.00014991,2]
[391598413,1760687439267,-879.467,0.00014999,2]
[391598414,1760687439277,-403.02650114,0.00014999,5]
[391598415,1760687439287,-1000.0,0.00014999,8]
[391598416,1760687439300,-1000.0,0.00014999,2]
[391598417,1760687439310,-150.0,0.00014999,2]
[391598418,1760687439320,-1000.0,0.00014999,2]
[391598419,1760687439330,-155.0,0.00014999,2]
[391598420,1760687439340,-119499.00342942,0.00015,2]
[391598421,1760687439350,-1000.0,0.00015,2]
[391598422,1760687439365,-1160243.77594398,0.00015,2]
[391598423,1760687439382,-3492022.70361011,0.00015,2]
[391598436,1760687440403,-1920.0,0.00015,2]
[391598437,1760687440417,-4590.2383673,0.00015,2]
[391598438,1760687440494,-9410.84,0.00015,2]
[391598439,1760687440506,-11281.54695906,0.00015,2]
[391598440,1760687440517,-670.23996749,0.00015,2]
[391598442,1760687440528,-661.212252,0.00015,2]
[391598444,1760687440539,-278.13206408,0.00015,2]
[391598448,1760687440567,-53348.68430253,0.00015,2]
[391598451,1760687440578,-860.49157235,0.00015,2]
[391598457,1760687440629,-605767.34731323,0.00015,2]
[391598459,1760687440638,-3437114.68017178,0.00015,2]
[391598470,1760687440732,-3773.6838439,0.00015,2]
[391598507,1760687443453,-2821.45028805,0.00014891,2]
[391598509,1760687443463,-211.61912452,0.000149,2]
[391598511,1760687443473,-19466.94582836,0.00015,2]
[391598515,1760687443611,-496114.8406684,0.00015,2]